Workbook

Sheet form
B1: ورود اطلاعات قرارداد کارگری سال 1404 (موقت و دائم) | AD1: 1 | AE1: کانال پیام رسان بله را دنبال کنید:
B2: دستمزد پایه سال قبل: | H2: 111872790 | N2: وضعیت تأهل: | S2: مجرد | V2: تعداد فرزندان: | Z2: 0 | AD2: bank1404 | AE2: https://ble.ir/farhani_El
B4: مزد سنوات سال قبل: | G4: 0 | K4: مدت سابقه کار در سال قبل به روز: | R4: 30 | S4: ماه: | T4: 11 | U4: پایه سنوات سال قبل: | Y4: 0 | AE4: راهنمای استفاده از فایل:
AE5: 1- این فایل برای بهره برداری در شهرداری های استان خوزستان طراحی شده است. 2- برای محاسبه حقوق قسمت های سبز رنگ را تکمیل کنید. 3- محاسبه حقوق کارگران مطابق بخشنامه مزد سال 1405 بر اساس اطلاعات وارد شده به صورت خودکار صورت می گیرد. 4- مبنای محاسبه پایه سنوات در این فایل مدت اشتغال در سال قبل می باشد، چنانچه کارگر یک سال کامل مشغول بکار نبوده است، مدت دقیق را به ماه و روز وارد کنید، در غیر اینصورت پایه سنوات به ازای یک سال کامل (11 ماه و 30 روز) محاسبه خواهد شد.
B6: محرومیت از تسهیلات زندگی: | I6: ندارد | L6: مدرک تحصیلی: | P6: دیپلم | S6: مزایای ایثارگری سال قبل: | X6: 0
B8: مابه التفاوت سال قبل: | L8: 0 | S8: درصد حق جذب: | X8: 20
B10: مشمول فوق العاده ماده ۵۱ قانون جامع ایثارگران هستید؟ جانبازان بیست و پنج درصد (۲۵ %) و بالاتر و آزادگان، همسران و فرزندان شهدا | X10: خیر
B11: میزان افزایش حقوق در قرارداد کارگری سال 1405
B12: =" نوع قرارداد : "&VLOOKUP(AD1,INDIRECT(AD2),10,FALSE) -> نوع قرارداد : افزایش دستمزد و عائله مندی | O12: حقوق و فوق العاده
B13: شرح قرارداد : | O13: الف: دستمزد پایه | W13: =VLOOKUP(AD1,INDIRECT(AD2),12,FALSE) -> 177802020 | AA13: ریال
B14: =VLOOKUP(AD1,INDIRECT(AD2),11,FALSE) -> باستناد بخشنامه شماره 6682 مورخ 1405/01/31 وزارت تعاون، کار و رفاه اجتماعی، دستمزد و مزایا بشرح زیر افزایش و قابل پرداخت می باشد: 1- افزایش 45% به مزد شغل (به اضافه 519549 ریال روزانه ). 2- افزایش 45% به سایر عناصر. 3- افزایش کمک هزینه حق اولاد به میزان 3 برابر (حداقل مزد روزانه به مبلغ 5,541,850 ریال) برای هر فرزند. 4- افزایش پایه سنوات روزانه مبلغ 166667 ریال. 5- کمک هزینه حق تأهل 5000000 ریال. 6- کمک هزینه اقلام مصرفی خانوار 22000000 ریال. 7- حق مسکن کارگران اعم از متأهل و مجرد به میزان 9000000 ریال خواهد بود./ | O14: ب: مزد سنوات | W14: =VLOOKUP(AD1,INDIRECT(AD2),13,FALSE) -> 0 | AA14: ریال
O15: پ: پایه سنوات | W15: =VLOOKUP(AD1,INDIRECT(AD2),14,FALSE) -> 5000010 | AA15: ریال
O16: جمع دستمزد و پایه : | W16: =VLOOKUP(AD1,INDIRECT(AD2),15,FALSE) -> 182802030 | AA16: ریال
O17: ت: مابه التفاوت | W17: =VLOOKUP(AD1,INDIRECT(AD2),30,FALSE) -> 0 | AA17: ریال
O18: ث: کمک هزینه مسکن | W18: =VLOOKUP(AD1,INDIRECT(AD2),16,FALSE) -> 9000000 | AA18: ریال
O19: ج: کمک عائله مندی(اولاد) | W19: =VLOOKUP(AD1,INDIRECT(AD2),17,FALSE) -> ـ | AA19: ریال
O20: چ: حق تأهل | W20: =VLOOKUP(AD1,INDIRECT(AD2),20,FALSE) -> ـ | AA20: ریال
O21: ح: بن کارگری | W21: =VLOOKUP(AD1,INDIRECT(AD2),21,FALSE) -> 22000000 | AA21: ریال
O22: خ: حق جذب | W22: =VLOOKUP(AD1,INDIRECT(AD2),22,FALSE) -> 35560404 | AA22: ریال
O23: د: مزایای ایثارگری | W23: =VLOOKUP(AD1,INDIRECT(AD2),18,FALSE) -> ـ | AA23: ریال | AE23: https://shenasname.ir/
O24: ذ: فوق العاده ایثارگری ماده 51 قانون جامع | W24: =VLOOKUP(AD1,INDIRECT(AD2),19,FALSE) -> ـ | AA24: ریال
O25: ر: فوق العاده محرومیت - بند ث ماده 112 | W25: =VLOOKUP(AD1,INDIRECT(AD2),23,FALSE) -> 0 | AA25: ریال
O26: ز: فوق العاده محرومیت- بند ج ماده 112 | W26: =VLOOKUP(AD1,INDIRECT(AD2),24,FALSE) -> 0 | AA26: ریال
O27: جمع کل : | W27: =VLOOKUP(AD1,INDIRECT(AD2),25,FALSE) -> 249362434 | AA27: ریال

Sheet data (hidden)
A1: 1 | B1: 2 | C1: 3 | D1: 4 | E1: 5 | F1: 6 | G1: 7 | H1: 8 | I1: 9 | J1: 10 | K1: 11 | L1: 12 | M1: 13 | N1: 14 | O1: 15 | P1: 16 | Q1: 17 | R1: 18 | S1: 19 | T1: 20 | U1: 21 | V1: 22 | W1: 23 | X1: 24 | Y1: 25 | Z1: 26 | AA1: 27 | AB1: 28 | AC1: 29 | AD1: 30 | AE1: 31 | AF1: 32 | AG1: 33 | AH1: 34 | AI1: 35 | AJ1: 36 | AK1: 37 | AL1: 38 | AM1: 39 | AN1: 40 | AO1: 41 | AP1: 42 | AQ1: 43 | AR1: 44 | AS1: 45 | AT1: 46 | AU1: 47 | AV1: 48 | AW1: 49 | AX1: 50 | AY1: 51 | AZ1: 52 | BA1: 53 | BB1: 54 | BC1: 55 | BD1: 56 | BE1: 57 | BF1: 58 | BG1: 59
A2: ردیف | B2: مدرک تحصيلي | C2: جنسيت | D2: گروه | E2: وضعيت تأهل | F2: تعداد فرزندان | G2: محاسبه تسهیلات | H2: مدت اشتغال سال قبل به روز | I2: مدت اشتغال سال قبل به ماه | J2: نوع قرارداد | K2: شرح حکم | L2: دستمزد پایه | M2: مزد سنوات | N2: پایه سنوات | O2: جمع دستمزد و پایه | P2: مسکن | Q2: اولاد | R2: مزایای ایثارگری | S2: فوق العاده ایثارگری ماده 51 قانون جامع | T2: حق تأهل | U2: بن کارگری | V2: حق جذب | W2: تسهیلات | X2: تسهیلات2 | Y2: جمع | Z2: مشمول ماده 51 | AA2: پایه سنوات 1404 | AB2: مزد سنوات1404 | AC2: مزایای ایثارگری 1404 | AD2: مابه التفاوت | AF2: بخشنامه سال | AG2: 1405
A3: 1 | B3: =form!P6 -> دیپلم | C3: مرد | D3: =form!H2 -> 111872790 | E3: =form!S2 -> مجرد | F3: =form!Z2 -> 0 | G3: =form!I6 -> ندارد | H3: =form!R4 -> 30 | I3: =form!T4 -> 11 | J3: افزایش دستمزد و عائله مندی | K3: باستناد بخشنامه شماره 6682 مورخ 1405/01/31 وزارت تعاون، کار و رفاه اجتماعی، دستمزد و مزایا بشرح زیر افزایش و قابل پرداخت می باشد: 1- افزایش 45% به مزد شغل (به اضافه 519549 ریال روزانه ). 2- افزایش 45% به سایر عناصر. 3- افزایش کمک هزینه حق اولاد به میزان 3 برابر (حداقل مزد روزانه به مبلغ 5,541,850 ریال) برای هر فرزند. 4- افزایش پایه سنوات روزانه مبلغ 166667 ریال. 5- کمک هزینه حق تأهل 5000000 ریال. 6- کمک هزینه اقلام مصرفی خانوار 22000000 ریال. 7- حق مسکن کارگران اعم از متأهل و مجرد به میزان 9000000 ریال خواهد بود./ | L3: =VLOOKUP(bank1404[[#This Row],[گروه ]],bakhshname[],$AG$3,0) -> 177802020 | M3: =ROUND((bank1404[[#This Row],[مزد سنوات1404]]*VLOOKUP($AG$2,Table3[],7,0)),0) -> 0 | N3: =ROUND((bank1404[[#This Row],[پایه سنوات 1404]]*VLOOKUP($AG$2,Table3[],7,0))+(((VLOOKUP(bank1404[[#This Row],[گروه ]],bakhshname[],$AG$4,0)/12)/30)*((bank1404[[#This Row],[مدت اشتغال سال قبل به ماه]]*30)+bank1404[[#This Row],[مدت اشتغال سال قبل به روز]])),0) -> 5000010 | O3: =SUM(bank1404[[#This Row],[دستمزد پایه]:[پایه سنوات]]) -> 182802030 | P3: =VLOOKUP($AG$2,Table3[],2,FALSE) -> 9000000 | Q3: =IF(VLOOKUP($AG$2,Table3[],3,0)*bank1404[[#This Row],[تعداد فرزندان]]=0,"ـ",VLOOKUP($AG$2,Table3[],3,0)*bank1404[[#This Row],[تعداد فرزندان]]) -> ـ | R3: =IF(bank1404[[#This Row],[مزایای ایثارگری 1404]]*VLOOKUP($AG$2,Table3[],7,0)=0,"ـ",bank1404[[#This Row],[مزایای ایثارگری 1404]]*VLOOKUP($AG$2,Table3[],7,0)) -> ـ | S3: =IF(bank1404[[#This Row],[مشمول ماده 51]]="بلی",VLOOKUP($AG$2,Table3[],9,0),"ـ") -> ـ | T3: =IF(bank1404[[#This Row],[وضعيت تأهل]]="متأهل",VLOOKUP($AG$2,Table3[],8,0),"ـ") -> ـ | U3: =VLOOKUP($AG$2,Table3[],4,0) -> 22000000 | V3: =bank1404[[#This Row],[دستمزد پایه]]*VLOOKUP(form!X8,Tablejazb[],2,0) -> 35560404 | W3: =IF(bank1404[[#This Row],[محاسبه تسهیلات]]="دارد",ROUND(IF(OR(bank1404[[#This Row],[مدرک تحصيلي]]="زیر دیپلم",bank1404[[#This Row],[مدرک تحصيلي]]="دیپلم",bank1404[[#This Row],[مدرک تحصيلي]]="فوق دیپلم",bank1404[[#This Row],[مدرک تحصيلي]]="لیسانس"),(VLOOKUP($AG$2,Table3[],5,0)*20%),IF(OR(bank1404[[#This Row],[مدرک تحصيلي]]="فوق لیسانس",bank1404[[#This Row],[مدرک تحصيلي]]="دکتری"),(VLOOKUP($AG$2,Table3[],5,0)*25%))),0),0) -> 0 | X3: =IF(bank1404[[#This Row],[محاسبه تسهیلات]]="دارد",ROUND(VLOOKUP($AG$2,Table3[],6,0),0),0) -> 0 | Y3: =ROUND(SUM(bank1404[[#This Row],[جمع دستمزد و پایه]:[تسهیلات2]])+bank1404[[#This Row],[مابه التفاوت]],0) -> 249362434 | Z3: =form!X10 -> خیر | AA3: =form!Y4 -> 0 | AB3: =form!G4 -> 0 | AC3: =form!X6 -> 0 | AD3: =form!L8 -> 0 | AF3: شماره ستون مزد شغل | AG3: 53
AF4: شماره ستون پایه سنوات | AG4: 55

Sheet بخشنامه (hidden)
A1: 1 | B1: 2 | C1: 3 | D1: 4 | E1: 5 | F1: 6 | G1: 7 | H1: 8 | I1: 9 | J1: 10 | K1: 11 | L1: 12 | M1: 13 | N1: 14 | O1: 15 | P1: 16 | Q1: 17 | R1: 18 | S1: 19 | T1: 20 | U1: 21 | V1: 22 | W1: 23 | X1: 24 | Y1: 25 | Z1: 26 | AA1: 27 | AB1: 28 | AC1: 29 | AD1: 30 | AE1: 31 | AF1: 32 | AG1: 33 | AH1: 34 | AI1: 35 | AJ1: 36 | AK1: 37 | AL1: 38 | AM1: 39 | AN1: 40 | AO1: 41 | AP1: 42 | AQ1: 43 | AR1: 44 | AS1: 45 | AT1: 46 | AU1: 47 | AV1: 48 | AW1: 49 | AX1: 50 | AY1: 51 | AZ1: 52 | BA1: 53 | BB1: 54 | BC1: 55
A2: گروه | B2: مزد شغل روزانه 90 | C2: مزد شغل روزانه 91 | D2: مزد شغل ماهانه 91 | E2: نرخ پایه سنوات 91 | F2: مزد شغل روزانه 92 | G2: مزد شغل ماهانه 92 | H2: نرخ پایه سنوات 92 | I2: مزد شغل روزانه 93 | J2: مزد شغل ماهانه 93 | K2: نرخ پایه سنوات 93 | L2: مزد شغل روزانه 94 | M2: مزد شغل ماهانه 94 | N2: نرخ پایه سنوات 94 | O2: مزد شغل روزانه 95 | P2: مزد شغل ماهانه 95 | Q2: نرخ پایه سنوات 95 | R2: مزد شغل روزانه 96 | S2: مزد شغل ماهانه 96 | T2: نرخ پایه سنوات 96 | U2: مزد شغل روزانه 97 | V2: مزد شغل ماهانه 97 | W2: نرخ پایه سنوات 97 | X2: مزد شغل روزانه 98 | Y2: مزد شغل ماهانه 98 | Z2: نرخ پایه سنوات 98 | AA2: مزد شغل روزانه 99 | AB2: مزد شغل ماهانه 99 | AC2: نرخ پایه سنوات 99 | AD2: مزد 99 | AE2: نرخ پایه سنوات 992 | AF2: مزد شغل روزانه 1400 | AG2: مزد شغل ماهانه 1400 | AH2: نرخ پایه سنوات روزانه 1400 | AI2: نرخ پایه سنوات(ماهانه) 1400 | AJ2: مزد شغل روزانه 1401 | AK2: مزد شغل ماهانه 1401 | AL2: نرخ پایه سنوات روزانه 1401 | AM2: نرخ پایه سنوات(ماهانه) 1401 | AN2: مزد شغل روزانه 1402 | AO2: مزد شغل ماهانه 1402 | AP2: نرخ پایه سنوات روزانه 1402 | AQ2: نرخ پایه سنوات(ماهانه) 1402 | AR2: مزد شغل روزانه 1403 | AS2: مزد شغل ماهانه 1403 | AT2: نرخ پایه سنوات روزانه 1403 | AU2: نرخ پایه سنوات(ماهانه) 1403 | AV2: مزد شغل روزانه 1404 | AW2: مزد شغل ماهانه 1404 | AX2: نرخ پایه سنوات روزانه 1404 | AY2: نرخ پایه سنوات(ماهانه) 1404 | AZ2: مزد شغل روزانه 1405 | BA2: مزد شغل ماهانه 1405 | BB2: نرخ پایه سنوات روزانه 1405 | BC2: نرخ پایه سنوات(ماهانه) 1405
A3: 111872790 | B3: 137831 | C3: 159572 | D3: 4787160 | E3: 75000 | F3: 195014 | G3: 5850420 | H3: 90000 | I3: 239526 | J3: 7185780 | K3: 150000 | L3: 280245 | M3: 8407350 | N3: 300000 | O3: 319479 | P3: 9584370 | Q3: 300000 | R3: 364584 | S3: 10937520 | T3: 510000 | U3: 430708 | V3: 12921240 | W3: 510000 | X3: =ROUND(bakhshname[[#This Row],[مزد شغل روزانه 97]]*1.13+87049,0) -> 573749 | Y3: =bakhshname[[#This Row],[مزد شغل روزانه 98]]*30 -> 17212470 | Z3: =23333*30 -> 699990 | AA3: 715149 | AB3: 21454470 | AC3: 999990 | AD3: 20704470 | AE3: 1749990 | AF3: 983875 | AG3: 29516250 | AH3: 46667 | AI3: 1400010 | AJ3: 1529470 | AK3: 45884100 | AL3: 70000 | AM3: 2100000 | AN3: 1934255 | AO3: 58027650 | AP3: 70000 | AQ3: 2100000 | AR3: 2589817 | AS3: 77694510 | AT3: 70000 | AU3: 2100000 | AV3: 3729093 | AW3: 111872790 | AX3: 94000 | AY3: 2820000 | AZ3: 5926734 | BA3: 177802020 | BB3: 166667 | BC3: 5000010
A4: 112199040 | B4: 138966 | C4: 160787 | D4: 4823610 | E4: 78000 | F4: 196351 | G4: 5890530 | H4: 93000 | I4: 241023 | J4: 7230690 | K4: 153000 | L4: 281996 | M4: 8459880 | N4: 306000 | O4: 321475 | P4: 9644250 | Q4: 306000 | R4: 366820 | S4: 11004600 | T4: 516000 | U4: 433177 | V4: 12995310 | W4: 516000 | X4: =ROUND(bakhshname[[#This Row],[مزد شغل روزانه 97]]*1.13+87049,0) -> 576539 | Y4: =bakhshname[[#This Row],[مزد شغل روزانه 98]]*30 -> 17296170 | Z4: =23533*30 -> 705990 | AA4: 718358 | AB4: 21550740 | AC4: 1005990 | AD4: 20800740 | AE4: 1755990 | AF4: 987915 | AG4: 29637450 | AH4: 46867 | AI4: 1406010 | AJ4: 1535050 | AK4: 46051500 | AL4: 70200 | AM4: 2106000 | AN4: 1941005 | AO4: 58230150 | AP4: 70200 | AQ4: 2106000 | AR4: 2598052 | AS4: 77941560 | AT4: 70200 | AU4: 2106000 | AV4: 3739968 | AW4: 112199040 | AX4: 94200 | AY4: 2826000 | AZ4: 5942499 | BA4: 178274970 | BB4: 166867 | BC4: 5006010
A5: 112525290 | B5: 140100 | C5: 162000 | D5: 4860000 | E5: 81000 | F5: 197685 | G5: 5930550 | H5: 96000 | I5: 242517 | J5: 7275510 | K5: 156000 | L5: 283746 | M5: 8512380 | N5: 312000 | O5: 323470 | P5: 9704100 | Q5: 312000 | R5: 369052 | S5: 11071560 | T5: 522000 | U5: 435641 | V5: 13069230 | W5: 522000 | X5: =ROUND(bakhshname[[#This Row],[مزد شغل روزانه 97]]*1.13+87049,0) -> 579323 | Y5: =bakhshname[[#This Row],[مزد شغل روزانه 98]]*30 -> 17379690 | Z5: =23733*30 -> 711990 | AA5: 721559 | AB5: 21646770 | AC5: 1011990 | AD5: 20896770 | AE5: 1761990 | AF5: 991954 | AG5: 29758620 | AH5: 47067 | AI5: 1412010 | AJ5: 1540630 | AK5: 46218900 | AL5: 70400 | AM5: 2112000 | AN5: 1947755 | AO5: 58432650 | AP5: 70400 | AQ5: 2112000 | AR5: 2606287 | AS5: 78188610 | AT5: 70400 | AU5: 2112000 | AV5: 3750843 | AW5: 112525290 | AX5: 94400 | AY5: 2832000 | AZ5: 5958264 | BA5: 178747920 | BB5: 167067 | BC5: 5012010
A6: 112851540 | B6: 141235 | C6: 163214 | D6: 4896420 | E6: 84000 | F6: 199020 | G6: 5970600 | H6: 99000 | I6: 244012 | J6: 7320360 | K6: 159000 | L6: 285494 | M6: 8564820 | N6: 318000 | O6: 325463 | P6: 9763890 | Q6: 318000 | R6: 371288 | S6: 11138640 | T6: 528000 | U6: 438109 | V6: 13143270 | W6: 528000 | X6: =ROUND(bakhshname[[#This Row],[مزد شغل روزانه 97]]*1.13+87049,0) -> 582112 | Y6: =bakhshname[[#This Row],[مزد شغل روزانه 98]]*30 -> 17463360 | Z6: =23933*30 -> 717990 | AA6: 724767 | AB6: 21743010 | AC6: 1017990 | AD6: 20993010 | AE6: 1767990 | AF6: 995994 | AG6: 29879820 | AH6: 47267 | AI6: 1418010 | AJ6: 1546210 | AK6: 46386300 | AL6: 70600 | AM6: 2118000 | AN6: 1954505 | AO6: 58635150 | AP6: 70600 | AQ6: 2118000 | AR6: 2614522 | AS6: 78435660 | AT6: 70600 | AU6: 2118000 | AV6: 3761718 | AW6: 112851540 | AX6: 94600 | AY6: 2838000 | AZ6: 5974029 | BA6: 179220870 | BB6: 167267 | BC6: 5018010
A7: 113177790 | B7: 142370 | C7: 164429 | D7: 4932870 | E7: 87000 | F7: 200357 | G7: 6010710 | H7: 102000 | I7: 245510 | J7: 7365300 | K7: 162000 | L7: 287246 | M7: 8617380 | N7: 324000 | O7: 327460 | P7: 9823800 | Q7: 324000 | R7: 373523 | S7: 11205690 | T7: 534000 | U7: 440577 | V7: 13217310 | W7: 534000 | X7: =ROUND(bakhshname[[#This Row],[مزد شغل روزانه 97]]*1.13+87049,0) -> 584901 | Y7: =bakhshname[[#This Row],[مزد شغل روزانه 98]]*30 -> 17547030 | Z7: =24133*30 -> 723990 | AA7: 727767 | AB7: 21839220 | AC7: 1023990 | AD7: 21089220 | AE7: 1773990 | AF7: 1000033 | AG7: 30000990 | AH7: 47467 | AI7: 1424010 | AJ7: 1551790 | AK7: 46553700 | AL7: 70800 | AM7: 2124000 | AN7: 1961255 | AO7: 58837650 | AP7: 70800 | AQ7: 2124000 | AR7: 2622757 | AS7: 78682710 | AT7: 70800 | AU7: 2124000 | AV7: 3772593 | AW7: 113177790 | AX7: 94800 | AY7: 2844000 | AZ7: 5989794 | BA7: 179693820 | BB7: 167467 | BC7: 5024010
A8: 113612790 | B8: 143882 | C8: 166047 | D8: 4981410 | E8: 90000 | F8: 202137 | G8: 6064110 | H8: 105000 | I8: 247503 | J8: 7425090 | K8: 165000 | L8: 289578 | M8: 8687340 | N8: 330000 | O8: 330119 | P8: 9903570 | Q8: 330000 | R8: 376501 | S8: 11295030 | T8: 540000 | U8: 443865 | V8: 13315950 | W8: 540000 | X8: =ROUND(bakhshname[[#This Row],[مزد شغل روزانه 97]]*1.13+87049,0) -> 588616 | Y8: =bakhshname[[#This Row],[مزد شغل روزانه 98]]*30 -> 17658480 | Z8: =24333*30 -> 729990 | AA8: 732246 | AB8: 21967380 | AC8: 1029990 | AD8: 21217380 | AE8: 1779990 | AF8: 1005419 | AG8: 30162570 | AH8: 47667 | AI8: 1430010 | AJ8: 1559230 | AK8: 46776900 | AL8: 71000 | AM8: 2130000 | AN8: 1970255 | AO8: 59107650 | AP8: 71000 | AQ8: 2130000 | AR8: 2633737 | AS8: 79012110 | AT8: 71000 | AU8: 2130000 | AV8: 3787093 | AW8: 113612790 | AX8: 95000 | AY8: 2850000 | AZ8: 6010814 | BA8: 180324420 | BB8: 167667 | BC8: 5030010
A9: 114047790 | B9: 145397 | C9: 167668 | D9: 5030040 | E9: 93000 | F9: 203920 | G9: 6117600 | H9: 108000 | I9: 249500 | J9: 7485000 | K9: 168000 | L9: 291915 | M9: 8757450 | N9: 336000 | O9: 332783 | P9: 9983490 | Q9: 336000 | R9: 379485 | S9: 11384550 | T9: 546000 | U9: 447159 | V9: 13414770 | W9: 546000 | X9: =ROUND(bakhshname[[#This Row],[مزد شغل روزانه 97]]*1.13+87049,0) -> 592339 | Y9: =bakhshname[[#This Row],[مزد شغل روزانه 98]]*30 -> 17770170 | Z9: =24533*30 -> 735990 | AA9: 736528 | AB9: 22095840 | AC9: 1035990 | AD9: 21345840 | AE9: 1785990 | AF9: 1010805 | AG9: 30324150 | AH9: 47867 | AI9: 1436010 | AJ9: 1566670 | AK9: 47000100 | AL9: 71200 | AM9: 2136000 | AN9: 1979255 | AO9: 59377650 | AP9: 71200 | AQ9: 2136000 | AR9: 2644717 | AS9: 79341510 | AT9: 71200 | AU9: 2136000 | AV9: 3801593 | AW9: 114047790 | AX9: 95200 | AY9: 2856000 | AZ9: 6031834 | BA9: 180955020 | BB9: 167867 | BC9: 5036010
A10: 114482790 | B10: 146908 | C10: 169285 | D10: 5078550 | E10: 96000 | F10: 205699 | G10: 6170970 | H10: 111000 | I10: 251493 | J10: 7544790 | K10: 171000 | L10: 294246 | M10: 8827380 | N10: 342000 | O10: 335440 | P10: 10063200 | Q10: 342000 | R10: 382461 | S10: 11473830 | T10: 552000 | U10: 450444 | V10: 13513320 | W10: 552000 | X10: =ROUND(bakhshname[[#This Row],[مزد شغل روزانه 97]]*1.13+87049,0) -> 596051 | Y10: =bakhshname[[#This Row],[مزد شغل روزانه 98]]*30 -> 17881530 | Z10: =24733*30 -> 741990 | AA10: 740797 | AB10: 22223910 | AC10: 1041990 | AD10: 21473910 | AE10: 1791990 | AF10: 1016191 | AG10: 30485730 | AH10: 48067 | AI10: 1442010 | AJ10: 1574110 | AK10: 47223300 | AL10: 71400 | AM10: 2142000 | AN10: 1988255 | AO10: 59647650 | AP10: 71400 | AQ10: 2142000 | AR10: 2655697 | AS10: 79670910 | AT10: 71400 | AU10: 2142000 | AV10: 3816093 | AW10: 114482790 | AX10: 95400 | AY10: 2862000 | AZ10: 6052854 | BA10: 181585620 | BB10: 168067 | BC10: 5042010
A11: 115026540 | B11: 148801 | C11: 171310 | D11: 5139300 | E11: 99000 | F11: 207926 | G11: 6237780 | H11: 114000 | I11: 253987 | J11: 7619610 | K11: 174000 | L11: 297166 | M11: 8914980 | N11: 348000 | O11: 338769 | P11: 10163070 | Q11: 348000 | R11: 386187 | S11: 11585610 | T11: 558000 | U11: 454558 | V11: 13636740 | W11: 558000 | X11: =ROUND(bakhshname[[#This Row],[مزد شغل روزانه 97]]*1.13+87049,0) -> 600700 | Y11: =bakhshname[[#This Row],[مزد شغل روزانه 98]]*30 -> 18021000 | Z11: =24933*30 -> 747990 | AA11: 746143 | AB11: 22384290 | AC11: 1047990 | AD11: 21634290 | AE11: 1797990 | AF11: 1022924 | AG11: 30687720 | AH11: 48267 | AI11: 1448010 | AJ11: 1583410 | AK11: 47502300 | AL11: 71600 | AM11: 2148000 | AN11: 1999505 | AO11: 59985150 | AP11: 71600 | AQ11: 2148000 | AR11: 2669422 | AS11: 80082660 | AT11: 71600 | AU11: 2148000 | AV11: 3834218 | AW11: 115026540 | AX11: 95600 | AY11: 2868000 | AZ11: 6079129 | BA11: 182373870 | BB11: 168267 | BC11: 5048010
A12: 115570290 | B12: 150690 | C12: 173331 | D12: 5199930 | E12: 102000 | F12: 210149 | G12: 6304470 | H12: 117000 | I12: 256477 | J12: 7694310 | K12: 177000 | L12: 300078 | M12: 9002340 | N12: 354000 | O12: 342089 | P12: 10262670 | Q12: 354000 | R12: 389908 | S12: 11697240 | T12: 564000 | U12: 458666 | V12: 13759980 | W12: 564000 | X12: =ROUND(bakhshname[[#This Row],[مزد شغل روزانه 97]]*1.13+87049,0) -> 605342 | Y12: =bakhshname[[#This Row],[مزد شغل روزانه 98]]*30 -> 18160260 | Z12: =25133*30 -> 753990 | AA12: 751481 | AB12: 22544430 | AC12: 1053990 | AD12: 21794430 | AE12: 1803990 | AF12: 1029656 | AG12: 30889680 | AH12: 48467 | AI12: 1454010 | AJ12: 1592710 | AK12: 47781300 | AL12: 71800 | AM12: 2154000 | AN12: 2010755 | AO12: 60322650 | AP12: 71800 | AQ12: 2154000 | AR12: 2683147 | AS12: 80494410 | AT12: 71800 | AU12: 2154000 | AV12: 3852343 | AW12: 115570290 | AX12: 95800 | AY12: 2874000 | AZ12: 6105404 | BA12: 183162120 | BB12: 168467 | BC12: 5054010
A13: 116222790 | B13: 152961 | C13: 175761 | D13: 5272830 | E13: 105000 | F13: 212822 | G13: 6384660 | H13: 120000 | I13: 259471 | J13: 7784130 | K13: 180000 | L13: 303581 | M13: 9107430 | N13: 360000 | O13: 346082 | P13: 10382460 | Q13: 360000 | R13: 394380 | S13: 11831400 | T13: 570000 | U13: 463603 | V13: 13908090 | W13: 570000 | X13: =ROUND(bakhshname[[#This Row],[مزد شغل روزانه 97]]*1.13+87049,0) -> 610920 | Y13: =bakhshname[[#This Row],[مزد شغل روزانه 98]]*30 -> 18327600 | Z13: =25333*30 -> 759990 | AA13: 757896 | AB13: 22736880 | AC13: 1059990 | AD13: 21986880 | AE13: 1809990 | AF13: 1037735 | AG13: 31132050 | AH13: 48667 | AI13: 1460010 | AJ13: 1603870 | AK13: 48116100 | AL13: 72000 | AM13: 2160000 | AN13: 2024255 | AO13: 60727650 | AP13: 72000 | AQ13: 2160000 | AR13: 2699617 | AS13: 80988510 | AT13: 72000 | AU13: 2160000 | AV13: 3874093 | AW13: 116222790 | AX13: 96000 | AY13: 2880000 | AZ13: 6136934 | BA13: 184108020 | BB13: 168667 | BC13: 5060010
A14: 116875290 | B14: 155230 | C14: 178189 | D14: 5345670 | E14: 111000 | F14: 215493 | G14: 6464790 | H14: 126000 | I14: 262462 | J14: 7873860 | K14: 186000 | L14: 307080 | M14: 9212400 | N14: 372000 | O14: 350071 | P14: 10502130 | Q14: 372000 | R14: 398848 | S14: 11965440 | T14: 582000 | U14: 468536 | V14: 14056080 | W14: 582000 | X14: =ROUND(bakhshname[[#This Row],[مزد شغل روزانه 97]]*1.13+87049,0) -> 616495 | Y14: =bakhshname[[#This Row],[مزد شغل روزانه 98]]*30 -> 18494850 | Z14: =25733*30 -> 771990 | AA14: 764307 | AB14: 22929210 | AC14: 1071990 | AD14: 22179210 | AE14: 1821990 | AF14: 1045814 | AG14: 31374420 | AH14: 49067 | AI14: 1472010 | AJ14: 1615030 | AK14: 48450900 | AL14: 72400 | AM14: 2172000 | AN14: 2037755 | AO14: 61132650 | AP14: 72400 | AQ14: 2172000 | AR14: 2716087 | AS14: 81482610 | AT14: 72400 | AU14: 2172000 | AV14: 3895843 | AW14: 116875290 | AX14: 96400 | AY14: 2892000 | AZ14: 6168464 | BA14: 185053920 | BB14: 169067 | BC14: 5072010
A15: 117527790 | B15: 157501 | C15: 180619 | D15: 5418570 | E15: 117000 | F15: 218166 | G15: 6544980 | H15: 132000 | I15: 265456 | J15: 7963680 | K15: 192000 | L15: 310583 | M15: 9317490 | N15: 384000 | O15: 354065 | P15: 10621950 | Q15: 384000 | R15: 403321 | S15: 12099630 | T15: 594000 | U15: 473474 | V15: 14204220 | W15: 594000 | X15: =ROUND(bakhshname[[#This Row],[مزد شغل روزانه 97]]*1.13+87049,0) -> 622075 | Y15: =bakhshname[[#This Row],[مزد شغل روزانه 98]]*30 -> 18662250 | Z15: =26133*30 -> 783990 | AA15: 770724 | AB15: 23121720 | AC15: 1083990 | AD15: 22371720 | AE15: 1833990 | AF15: 1053893 | AG15: 31616790 | AH15: 49467 | AI15: 1484010 | AJ15: 1626190 | AK15: 48785700 | AL15: 72800 | AM15: 2184000 | AN15: 2051255 | AO15: 61537650 | AP15: 72800 | AQ15: 2184000 | AR15: 2732557 | AS15: 81976710 | AT15: 72800 | AU15: 2184000 | AV15: 3917593 | AW15: 117527790 | AX15: 96800 | AY15: 2904000 | AZ15: 6199994 | BA15: 185999820 | BB15: 169467 | BC15: 5084010
A16: 118397790 | B16: 160527 | C16: 183857 | D16: 5515710 | E16: 123000 | F16: 221728 | G16: 6651840 | H16: 138000 | I16: 269445 | J16: 8083350 | K16: 198000 | L16: 315250 | M16: 9457500 | N16: 396000 | O16: 359385 | P16: 10781550 | Q16: 396000 | R16: 409279 | S16: 12278370 | T16: 606000 | U16: 480052 | V16: 14401560 | W16: 606000 | X16: =ROUND(bakhshname[[#This Row],[مزد شغل روزانه 97]]*1.13+87049,0) -> 629508 | Y16: =bakhshname[[#This Row],[مزد شغل روزانه 98]]*30 -> 18885240 | Z16: =26533*30 -> 795990 | AA16: 779272 | AB16: 23378160 | AC16: 1095990 | AD16: 22628160 | AE16: 1845990 | AF16: 1064665 | AG16: 31939950 | AH16: 49867 | AI16: 1496010 | AJ16: 1641070 | AK16: 49232100 | AL16: 73200 | AM16: 2196000 | AN16: 2069255 | AO16: 62077650 | AP16: 73200 | AQ16: 2196000 | AR16: 2754517 | AS16: 82635510 | AT16: 73200 | AU16: 2196000 | AV16: 3946593 | AW16: 118397790 | AX16: 97200 | AY16: 2916000 | AZ16: 6242034 | BA16: 187261020 | BB16: 169867 | BC16: 5096010
A17: 119267790 | B17: 163552 | C17: 187094 | D17: 5612820 | E17: 129000 | F17: 225288 | G17: 6758640 | H17: 144000 | I17: 273433 | J17: 8202990 | K17: 204000 | L17: 319916 | M17: 9597480 | N17: 408000 | O17: 364704 | P17: 10941120 | Q17: 408000 | R17: 415236 | S17: 12457080 | T17: 618000 | U17: 486628 | V17: 14598840 | W17: 618000 | X17: =ROUND(bakhshname[[#This Row],[مزد شغل روزانه 97]]*1.13+87049,0) -> 636939 | Y17: =bakhshname[[#This Row],[مزد شغل روزانه 98]]*30 -> 19108170 | Z17: =26933*30 -> 807990 | AA17: 787818 | AB17: 23634540 | AC17: 1107990 | AD17: 22884540 | AE17: 1857990 | AF17: 1075437 | AG17: 32263110 | AH17: 50267 | AI17: 1508010 | AJ17: 1655950 | AK17: 49678500 | AL17: 73600 | AM17: 2208000 | AN17: 2087255 | AO17: 62617650 | AP17: 73600 | AQ17: 2208000 | AR17: 2776477 | AS17: 83294310 | AT17: 73600 | AU17: 2208000 | AV17: 3975593 | AW17: 119267790 | AX17: 97600 | AY17: 2928000 | AZ17: 6284074 | BA17: 188522220 | BB17: 170267 | BC17: 5108010
A18: 120137790 | B18: 166578 | C18: 190331 | D18: 5709930 | E18: 135000 | F18: 228849 | G18: 6865470 | H18: 150000 | I18: 277421 | J18: 8322630 | K18: 210000 | L18: 324582 | M18: 9737460 | N18: 420000 | O18: 370023 | P18: 11100690 | Q18: 420000 | R18: 421194 | S18: 12635820 | T18: 630000 | U18: 493206 | V18: 14796180 | W18: 630000 | X18: =ROUND(bakhshname[[#This Row],[مزد شغل روزانه 97]]*1.13+87049,0) -> 644372 | Y18: =bakhshname[[#This Row],[مزد شغل روزانه 98]]*30 -> 19331160 | Z18: =27333*30 -> 819990 | AA18: 796366 | AB18: 23890980 | AC18: 1119990 | AD18: 23140980 | AE18: 1869990 | AF18: 1086209 | AG18: 32586270 | AH18: 50667 | AI18: 1520010 | AJ18: 1670830 | AK18: 50124900 | AL18: 74000 | AM18: 2220000 | AN18: 2105255 | AO18: 63157650 | AP18: 74000 | AQ18: 2220000 | AR18: 2798437 | AS18: 83953110 | AT18: 74000 | AU18: 2220000 | AV18: 4004593 | AW18: 120137790 | AX18: 98000 | AY18: 2940000 | AZ18: 6326114 | BA18: 189783420 | BB18: 170667 | BC18: 5120010
A22: 1 | B22: 2 | C22: 3 | D22: 4 | E22: 5 | F22: 6 | G22: 7 | H22: 8
A23: سال | B23: حق مسکن | C23: حق اولا 1 فرزند | D23: بن کالا | E23: حد اقل حقوق | F23: ضریب حقوق کارمندان*عدد 300 | G23: افزایش سایر سطوح | H23: حق تاهل( عائله مندی) | I23: فوق العاده ایثارگری ماده 51 قانون جامع
A24: 91 | B24: 100000 | C24: 389700 | D24: 350000
A25: 92 | B25: 100000 | C25: 487125 | D25: 350000
A26: 93 | B26: 200000 | C26: 608910 | D26: 800000
A27: 94 | B27: 400000 | C27: 712425 | D27: 1100000
A28: 95 | B28: 400000 | C28: 812166 | D28: 1100000
A29: 96 | B29: 400000 | C29: 929931 | D29: 1100000
A30: 97 | B30: 400000 | C30: 1111269 | D30: 1100000
A31: 98 | B31: 1000000 | C31: 1516882 | D31: 1900000 | E31: 15168810 | F31: =2120*200 -> 424000
A32: 99 | B32: 3000000 | C32: 1910427 | D32: 4000000 | E32: 19104270 | F32: 487600
A33: 1400 | B33: 4500000 | C33: 2655495 | D33: 6000000 | E33: 26554950 | F33: 609600 | G33: 1.26
A34: 1401 | B34: 5500000 | C34: 4179750 | D34: 8500000 | E34: 41797500 | F34: 1005900 | G34: 1.38
A35: 1402 | B35: 9000000 | C35: 5308284 | D35: 11000000 | E35: 53082840 | F35: 1207200 | G35: 1.21
A36: 1403 | B36: 9000000 | C36: 7166184 | D36: 14000000 | E36: 71661840 | F36: 1448700 | G36: 1.22 | H36: 5000000 | I36: 8897400
A37: 1404 | B37: 9000000 | C37: 10390968 | D37: 22000000 | E37: 103909680 | F37: 1738500 | G37: 1.32 | H37: 5000000 | I37: 10676880
A38: 1405 | B38: 9000000 | C38: 16625550 | D38: 22000000 | E38: 166255500 | F38: 2086200 | G38: 1.45 | H38: 5000000 | I38: 12812256
B44: تعداد فرزندان | C44: وضعیت تأهل | D44: مدرک تحصیلی | E44: محرومیت از تسهیلات زندگی | F44: سابقه کار به روز | G44: سابقه کار به ماه
A45: bank1400 | B45: 0 | C45: مجرد | D45: زیر دیپلم | E45: دارد | F45: 0 | G45: 0
A46: bank1401 | B46: 1 | C46: متأهل | D46: دیپلم | E46: ندارد | F46: 1 | G46: 1
A47: bank1402 | B47: 2 | D47: فوق دیپلم | F47: 2 | G47: 2
A48: bank1403 | B48: 3 | D48: لیسانس | E48: ماده 51 | F48: 3 | G48: 3
A49: bank1404 | B49: 4 | D49: فوق لیسانس | E49: خیر | F49: 4 | G49: 4
A50: bank1405 | B50: 5 | D50: دکتری | E50: بلی | F50: 5 | G50: 5
A51: bank1406 | B51: 6 | F51: 6 | G51: 6
A52: bank1407 | B52: 7 | C52: عدد | D52: درصد حق جذب | F52: 7 | G52: 7
A53: bank1408 | C53: 20 | D53: 0.2 | F53: 8 | G53: 8
A54: bank1409 | C54: 24 | D54: 0.24 | F54: 9 | G54: 9
A55: bank1410 | C55: 27 | D55: 0.27 | F55: 10 | G55: 10
C56: 30 | D56: 0.3 | F56: 11 | G56: 11
F57: 12
F58: 13
F59: 14
F60: 15
F61: 16
F62: 17
F63: 18
F64: 19
F65: 20
F66: 21
F67: 22
F68: 23
F69: 24
F70: 25
F71: 26
F72: 27
F73: 28
F74: 29
F75: 30
